[Event "Ceske Budejovice Open-A 2019"]
[Site "Ceske Budejovice"]
[Date "2019.07.02"]
[Round "4.1"]
[White "Frolov, Artur"]
[Black "Velicka, Petr"]
[Result "1-0"]
[ECO "C67"]
[WhiteElo "2453"]
[BlackElo "2428"]
[Annotator "ChessBase"]
[PlyCount "73"]
[EventDate "2019.07.02"]
[EventCountry "CZE"]
[SourceTitle "playchess.com"]
[Source "ChessBase"]
[SourceQuality "1"]
[TimeControl "5400+30"]

1. e4 {[%emt 0:00:00]} e5 {[%emt 0:05:18]} 2. Nf3 {[%emt 0:00:00]} Nc6 {[%emt 0:00:03]} 3. Bb5 {[%emt 0:00:00]} Nf6 {[%emt 0:00:04]} 4. O-O {[%emt 0:00:51]} Nxe4 {[%emt 0:00:05]} 5. d4 {[%emt 0:00:27]} Nd6 {[%emt 0:00:10]} 6. Bxc6 {[%emt 0:00:06]} dxc6 {[%emt 0:00:05]} 7. dxe5 {[%emt 0:00:04]} Nf5 {[%emt 0:00:05]} 8. Qxd8+ {[%emt 0:00:06]} Kxd8 {[%emt 0:00:09]} 9. Rd1+ {[%emt 0:00:03]} Ke8 {[%emt 0:00:11]} 10. Nc3 {[%emt 0:00:10]} Ne7 {[%emt 0:00:13]} 11. Nd4 {[%emt 0:10:21]} a6 {[%emt 0:11:27]} 12. Bg5 {[%emt 0:02:29]} h6 {[%emt 0:05:16]} 13. Bh4 {[%emt 0:00:13]} Nd5 {[%emt 0:00:13]} 14. Ne4 {[%emt 0:01:40]} Be6 {[%emt 0:05:32]} 15. Rd2 {[%emt 0:11:40]} g5 {[%emt 0:03:37]} 16. Bg3 {[%emt 0:02:45]} Be7 {[%emt 0:00:32]} 17. Rad1 {[%emt 0:06:29]} c5 {[%emt 0:09:59]} 18. Nb3 {[%emt 0:13:16]} c4 {[%emt 0:12:17]} 19. Na5 {[%emt 0:08:01]} Bb4 {[%emt 0:00:50]} 20. Rxd5 {[%emt 0:00:18]} Bxd5 {[%emt 0:00:05]} 21. Rxd5 {[%emt 0:00:03]} c6 {[%emt 0:00:07]} 22. Nf6+ {[%emt 0:00:30]} Kf8 {[%emt 0:01:10]} 23. a3 {[%emt 0:18:09]} cxd5 {[%emt 0:01:41]} 24. axb4 {[%emt 0:00:06]} Kg7 {[%emt 0:09:46]} 25. Nxd5 {[%emt 0:02:15]} Rhd8 {[%emt 0:03:21]} 26. Ne3 {[%emt 0:00:06]} b5 {[%emt 0:00:28]} 27. Kf1 {[%emt 0:00:24]} Kg6 {[%emt 0:01:22]} 28. Nc6 {[%emt 0:01:54]} Re8 {[%emt 0:01:03]} 29. Nd5 {[%emt 0:02:11]} Re6 {[%emt 0:04:57]} 30. f4 {[%emt 0:04:35]} Kf5 {[%emt 0:03:25]} 31. Nd4+ {[%emt 0:01:08]} Ke4 {[%emt 0:00:22]} 32. Nxe6 {[%emt 0:00:02]} fxe6 {[%emt 0:00:13]} 33. Nf6+ {[%emt 0:00:48]} Ke3 {[%emt 0:01:20]} 34. f5 {[%emt 0:00:09]} exf5 {[%emt 0:02:31]} 35. e6 {[%emt 0:00:26]} Kd2 {[%emt 0:00:08]} 36. c3 {[%emt 0:00:32]} f4 {[%emt 0:02:19]} 37. Be1+ {[%emt 0:00:16]} 1-0

[Event "Ceske Budejovice Open-A 2019"]
[Site "Ceske Budejovice"]
[Date "2019.07.02"]
[Round "4.2"]
[White "Plischki, Sebastian"]
[Black "Ivanov, Mikhail M"]
[Result "0-1"]
[ECO "A37"]
[WhiteElo "2420"]
[BlackElo "2366"]
[Annotator "ChessBase"]
[PlyCount "76"]
[EventDate "2019.07.02"]
[EventCountry "CZE"]
[SourceTitle "playchess.com"]
[Source "ChessBase"]
[SourceQuality "1"]
[TimeControl "5400+30"]

1. c4 {[%emt 0:00:00]} c5 {[%emt 0:05:43]} 2. Nf3 {[%emt 0:00:00]} g6 {[%emt 0:00:56]} 3. Nc3 {[%emt 0:01:24]} Bg7 {[%emt 0:00:12]} 4. g3 {[%emt 0:00:08]} Nc6 {[%emt 0:01:00]} 5. Bg2 {[%emt 0:00:07]} d6 {[%emt 0:01:02]} 6. O-O {[%emt 0:00:20]} Bf5 {[%emt 0:00:12]} 7. b3 {[%emt 0:00:53]} Qd7 {[%emt 0:06:17]} 8. Bb2 {[%emt 0:00:07]} Bh3 {[%emt 0:01:34]} 9. e3 {[%emt 0:01:06]} Bxg2 {[%emt 0:00:05]} 10. Kxg2 {[%emt 0:00:07]} h5 {[%emt 0:06:13]} 11. h4 {[%emt 0:04:10]} Nh6 {[%emt 0:00:20]} 12. d4 {[%emt 0:01:55]} cxd4 {[%emt 0:04:16]} 13. exd4 {[%emt 0:00:08]} Nf5 {[%emt 0:01:32]} 14. d5 {[%emt 0:06:38]} Ne5 {[%emt 0:00:46]} 15. Nxe5 {[%emt 0:00:14]} Bxe5 {[%emt 0:00:05]} 16. Re1 {[%emt 0:02:06]} O-O {[%emt 0:00:50]} 17. Rb1 {[%emt 0:01:12]} Rfc8 {[%emt 0:03:57]} 18. Qd3 {[%emt 0:08:57]} b6 {[%emt 0:02:40]} 19. Ne2 {[%emt 0:02:55]} Bxb2 {[%emt 0:00:12]} 20. Rxb2 {[%emt 0:00:05]} a6 {[%emt 0:02:40]} 21. Nd4 {[%emt 0:01:48]} Nxd4 {[%emt 0:00:46]} 22. Qxd4 {[%emt 0:00:07]} b5 {[%emt 0:02:08]} 23. Rbe2 {[%emt 0:00:10]} Re8 {[%emt 0:00:11]} 24. Re4 {[%emt 0:03:13]} Rac8 {[%emt 0:06:33]} 25. Qe3 {[%emt 0:09:28]} bxc4 {[%emt 0:00:35]} 26. bxc4 {[%emt 0:00:06]} Kg7 {[%emt 0:06:29]} 27. g4 {[%emt 0:25:13]} hxg4 {[%emt 0:02:47]} 28. h5 {[%emt 0:00:28]} Qf5 {[%emt 0:16:15]} 29. Qd4+ {[%emt 0:03:30]} f6 {[%emt 0:07:51]} 30. Rxe7+ {[%emt 0:04:56]} Rxe7 {[%emt 0:01:20]} 31. Rxe7+ {[%emt 0:00:05]} Kh6 {[%emt 0:06:34]} 32. Re6 {[%emt 0:04:02]} Qf3+ {[%emt 0:02:41]} 33. Kh2 {[%emt 0:03:44]} Rb8 {[%emt 0:06:08]} 34. Qd2+ {[%emt 0:08:22]} Kxh5 {[%emt 0:01:21]} 35. Re3 {[%emt 0:07:20]} Qf4+ {[%emt 0:00:07]} 36. Kg2 {[%emt 0:00:04]} Qxc4 {[%emt 0:00:39]} 37. Re6 {[%emt 0:02:27]} Rb1 {[%emt 0:03:22]} 38. Re2 {[%emt 0:00:43]} Rb5 {[%emt 0:00:43]} 0-1

[Event "Ceske Budejovice Open-A 2019"]
[Site "Ceske Budejovice"]
[Date "2019.07.02"]
[Round "4.3"]
[White "Voloshin, Leonid"]
[Black "Barrish, Daniel"]
[Result "1/2-1/2"]
[ECO "D38"]
[WhiteElo "2376"]
[BlackElo "2209"]
[Annotator "ChessBase"]
[PlyCount "51"]
[EventDate "2019.07.02"]
[EventCountry "CZE"]
[SourceTitle "playchess.com"]
[Source "ChessBase"]
[SourceQuality "1"]
[TimeControl "5400+30"]

1. d4 {[%emt 0:00:00]} Nf6 {[%emt 0:00:00]} 2. Nf3 {[%emt 0:00:00]} d5 {[%emt 0:00:25]} 3. c4 {[%emt 0:00:09]} e6 {[%emt 0:00:05]} 4. Nc3 {[%emt 0:00:18]} Bb4 {[%emt 0:00:10]} 5. cxd5 {[%emt 0:07:04]} exd5 {[%emt 0:00:09]} 6. Qa4+ {[%emt 0:01:33]} Nc6 {[%emt 0:00:14]} 7. Ne5 {[%emt 0:00:15]} a5 {[%emt 0:00:37]} 8. a3 {[%emt 0:08:55]} Bxc3+ {[%emt 0:04:56]} 9. bxc3 {[%emt 0:01:59]} O-O {[%emt 0:06:53]} 10. Nxc6 {[%emt 0:14:12]} Qe8 {[%emt 0:02:47]} 11. Bf4 {[%emt 0:11:09]} Qd7 {[%emt 0:09:46]} 12. e3 {[%emt 0:02:56]} bxc6 {[%emt 0:00:10]} 13. Bd3 {[%emt 0:00:37]} Ba6 {[%emt 0:01:08]} 14. Bxa6 {[%emt 0:01:33]} Rxa6 {[%emt 0:00:06]} 15. c4 {[%emt 0:04:53]} Nh5 {[%emt 0:07:34]} 16. Bg3 {[%emt 0:05:11]} Nxg3 {[%emt 0:16:26]} 17. hxg3 {[%emt 0:00:15]} Qd6 {[%emt 0:01:41]} 18. Qc2 {[%emt 0:20:10]} g6 {[%emt 0:01:12]} 19. O-O {[%emt 0:02:19]} c5 {[%emt 0:04:07]} 20. Rfd1 {[%emt 0:03:55]} cxd4 {[%emt 0:05:29]} 21. Rxd4 {[%emt 0:02:32]} Rc6 {[%emt 0:00:44]} 22. Qd2 {[%emt 0:05:15]} Rxc4 {[%emt 0:00:18]} 23. Rxd5 {[%emt 0:00:51]} Qf6 {[%emt 0:00:10]} 24. Rd1 {[%emt 0:00:08]} a4 {[%emt 0:01:21]} 25. Rd4 {[%emt 0:01:48]} Rxd4 {[%emt 0:00:36]} 26. Qxd4 {[%emt 0:01:10]} 1/2-1/2

[Event "Ceske Budejovice Open-A 2019"]
[Site "Ceske Budejovice"]
[Date "2019.07.02"]
[Round "4.5"]
[White "Mirzoev, Azer"]
[Black "Mulenko, Alexander"]
[Result "1-0"]
[ECO "E38"]
[WhiteElo "2474"]
[BlackElo "2075"]
[Annotator "ChessBase"]
[PlyCount "109"]
[EventDate "2019.07.02"]
[EventCountry "CZE"]
[SourceTitle "playchess.com"]
[Source "ChessBase"]
[SourceQuality "1"]
[TimeControl "5400+30"]

1. d4 {[%emt 0:01:49]} Nf6 {[%emt 0:00:00]} 2. c4 {[%emt 0:00:04]} e6 {[%emt 0:00:00]} 3. Nc3 {[%emt 0:00:03]} Bb4 {[%emt 0:00:20]} 4. Qc2 {[%emt 0:00:04]} c5 {[%emt 0:01:44]} 5. dxc5 {[%emt 0:00:08]} Bxc5 {[%emt 0:01:00]} 6. Nf3 {[%emt 0:00:09]} Qc7 {[%emt 0:03:07]} 7. Bg5 {[%emt 0:02:53]} Be7 {[%emt 0:03:33]} 8. e4 {[%emt 0:01:28]} d6 {[%emt 0:01:08]} 9. Nb5 {[%emt 0:08:56]} Qa5+ {[%emt 0:05:19]} 10. Qd2 {[%emt 0:01:34]} Qxd2+ {[%emt 0:00:50]} 11. Nxd2 {[%emt 0:00:04]} Na6 {[%emt 0:01:13]} 12. Bf4 {[%emt 0:00:56]} e5 {[%emt 0:02:07]} 13. Be3 {[%emt 0:01:16]} b6 {[%emt 0:00:44]} 14. f3 {[%emt 0:05:47]} O-O {[%emt 0:00:40]} 15. a3 {[%emt 0:00:32]} Ne8 {[%emt 0:01:10]} 16. Be2 {[%emt 0:00:41]} Nac7 {[%emt 0:04:21]} 17. Nc3 {[%emt 0:00:33]} h6 {[%emt 0:02:22]} 18. Bf2 {[%emt 0:01:16]} f5 {[%emt 0:05:47]} 19. O-O {[%emt 0:01:49]} Nf6 {[%emt 0:08:24]} 20. Rfd1 {[%emt 0:01:03]} g5 {[%emt 0:01:52]} 21. Bd3 {[%emt 0:04:35]} f4 {[%emt 0:00:34]} 22. b4 {[%emt 0:02:39]} Kf7 {[%emt 0:02:39]} 23. Rac1 {[%emt 0:07:28]} g4 {[%emt 0:01:03]} 24. Nd5 {[%emt 0:00:21]} Ncxd5 {[%emt 0:01:34]} 25. cxd5 {[%emt 0:00:03]} gxf3 {[%emt 0:00:22]} 26. gxf3 {[%emt 0:00:44]} Bh3 {[%emt 0:00:56]} 27. Bf1 {[%emt 0:00:09]} Rg8+ {[%emt 0:00:15]} 28. Kh1 {[%emt 0:00:03]} Bd7 {[%emt 0:03:23]} 29. Ba6 {[%emt 0:00:40]} Bh3 {[%emt 0:01:53]} 30. Rg1 {[%emt 0:04:09]} Rxg1+ {[%emt 0:01:01]} 31. Rxg1 {[%emt 0:00:50]} Rg8 {[%emt 0:03:35]} 32. Rxg8 {[%emt 0:01:55]} Nxg8 {[%emt 0:00:16]} 33. a4 {[%emt 0:00:26]} Bd8 {[%emt 0:02:22]} 34. Nc4 {[%emt 0:02:28]} Bc7 {[%emt 0:06:26]} 35. a5 {[%emt 0:01:20]} bxa5 {[%emt 0:05:33]} 36. Nxa5 {[%emt 0:01:15]} Bb6 {[%emt 0:00:20]} 37. Bxb6 {[%emt 0:01:40]} axb6 {[%emt 0:00:04]} 38. Nc4 {[%emt 0:00:12]} Ke7 {[%emt 0:00:42]} 39. Nxb6 {[%emt 0:00:28]} Kd8 {[%emt 0:00:25]} 40. Kg1 {[%emt 0:00:38]} Nf6 {[%emt 0:05:46]} 41. Kf2 {[%emt 0:03:07]} Kc7 {[%emt 0:03:39]} 42. Na4 {[%emt 0:01:06]} Nd7 {[%emt 0:00:40]} 43. Bf1 {[%emt 0:02:12]} Bxf1 {[%emt 0:02:20]} 44. Kxf1 {[%emt 0:00:06]} Nb6 {[%emt 0:00:33]} 45. Nb2 {[%emt 0:03:12]} Nc8 {[%emt 0:00:39]} 46. Nc4 {[%emt 0:05:19]} Nb6 {[%emt 0:00:50]} 47. Na5 {[%emt 0:00:36]} Nd7 {[%emt 0:04:19]} 48. Kg2 {[%emt 0:00:20]} Nf6 {[%emt 0:05:52]} 49. Nc4 {[%emt 0:00:41]} Nd7 {[%emt 0:05:06]} 50. Kh3 {[%emt 0:00:15]} Nb8 {[%emt 0:01:32]} 51. b5 {[%emt 0:02:16]} Nd7 {[%emt 0:00:16]} 52. Kg4 {[%emt 0:00:05]} Nc5 {[%emt 0:02:23]} 53. b6+ {[%emt 0:00:43]} Kb7 {[%emt 0:00:26]} 54. Nxd6+ {[%emt 0:00:09]} Kxb6 {[%emt 0:00:05]} 55. Nc4+ {[%emt 0:00:08]} 1-0

[Event "Ceske Budejovice Open-A 2019"]
[Site "Ceske Budejovice"]
[Date "2019.07.02"]
[Round "4.6"]
[White "Lys, Josef"]
[Black "Nagy, Gabor"]
[Result "0-1"]
[ECO "A50"]
[WhiteElo "2108"]
[BlackElo "2471"]
[Annotator "ChessBase"]
[PlyCount "58"]
[EventDate "2019.07.02"]
[EventCountry "CZE"]
[SourceTitle "playchess.com"]
[Source "ChessBase"]
[SourceQuality "1"]
[TimeControl "5400+30"]

1. d4 {[%emt 0:00:00]} Nf6 {[%emt 0:02:14]} 2. c4 {[%emt 0:00:00]} g6 {[%emt 0:00:07]} 3. Qc2 {[%emt 0:01:29]} Bg7 {[%emt 0:00:41]} 4. e4 {[%emt 0:00:18]} d6 {[%emt 0:00:22]} 5. Nf3 {[%emt 0:00:46]} O-O {[%emt 0:00:23]} 6. Be2 {[%emt 0:03:14]} c5 {[%emt 0:02:10]} 7. O-O {[%emt 0:00:41]} Nc6 {[%emt 0:00:17]} 8. dxc5 {[%emt 0:07:24]} dxc5 {[%emt 0:00:12]} 9. Nc3 {[%emt 0:01:53]} Nd4 {[%emt 0:03:18]} 10. Nxd4 {[%emt 0:00:15]} cxd4 {[%emt 0:00:08]} 11. Nd5 {[%emt 0:01:31]} Nd7 {[%emt 0:00:13]} 12. Bg5 {[%emt 0:05:17]} Re8 {[%emt 0:02:41]} 13. c5 {[%emt 0:07:04]} h6 {[%emt 0:01:53]} 14. Bh4 {[%emt 0:22:28]} g5 {[%emt 0:05:31]} 15. Bg3 {[%emt 0:00:11]} Ne5 {[%emt 0:00:06]} 16. f4 {[%emt 0:08:12]} d3 {[%emt 0:01:13]} 17. Bxd3 {[%emt 0:02:06]} Nxd3 {[%emt 0:00:11]} 18. Rad1 {[%emt 0:01:39]} Nxf4 {[%emt 0:08:35]} 19. Nxf4 {[%emt 0:06:19]} Qa5 {[%emt 0:00:09]} 20. Nd5 {[%emt 0:04:50]} Bg4 {[%emt 0:00:30]} 21. Rd3 {[%emt 0:02:13]} Rac8 {[%emt 0:05:38]} 22. b4 {[%emt 0:01:33]} Qb5 {[%emt 0:00:06]} 23. Nc7 {[%emt 0:03:07]} Rxc7 {[%emt 0:00:10]} 24. Bxc7 {[%emt 0:00:13]} Qxb4 {[%emt 0:00:11]} 25. Rb3 {[%emt 0:02:45]} Qa4 {[%emt 0:00:26]} 26. Rc1 {[%emt 0:08:10]} Rc8 {[%emt 0:02:34]} 27. Bg3 {[%emt 0:06:24]} Bd4+ {[%emt 0:03:50]} 28. Bf2 {[%emt 0:00:47]} Rxc5 {[%emt 0:00:10]} 29. Qd2 {[%emt 0:01:30]} Qxa2 {[%emt 0:00:32]} 0-1

[Event "Ceske Budejovice Open-A 2019"]
[Site "Ceske Budejovice"]
[Date "2019.07.02"]
[Round "4.7"]
[White "Nejdl, Eduard"]
[Black "Karasek, Lukas"]
[Result "1/2-1/2"]
[ECO "B51"]
[WhiteElo "1995"]
[BlackElo "2278"]
[Annotator "RC"]
[PlyCount "115"]
[EventDate "2019.07.02"]
[EventCountry "CZE"]
[SourceTitle "playchess.com"]
[Source "ChessBase"]
[SourceQuality "1"]
[TimeControl "5400+30"]

1. e4 {[%emt 0:02:09]} c5 {[%emt 0:00:00]} 2. Nf3 {[%emt 0:00:02]} d6 {[%emt 0:00:00]} 3. Bb5+ {[%emt 0:00:06]} Nd7 {[%emt 0:01:10]} 4. a4 {[%emt 0:00:11]} Ngf6 {[%emt 0:00:56]} 5. Qe2 {[%emt 0:01:45]} e6 {[%emt 0:09:14]} 6. c3 {[%emt 0:02:41]} a6 {[%emt 0:05:44]} 7. Bc4 {[%emt 0:02:18]} Be7 {[%emt 0:05:49]} 8. d3 {[%emt 0:03:42]} b6 {[%emt 0:02:23]} 9. Bb3 {[%emt 0:01:32]} Bb7 {[%emt 0:00:42]} 10. Bf4 {[%emt 0:02:55]} O-O {[%emt 0:04:54]} 11. h3 {[%emt 0:04:52]} Re8 {[%emt 0:01:50]} 12. Na3 {[%emt 0:01:23]} Bf8 {[%emt 0:01:18]} 13. O-O {[%emt 0:02:16]} Qc7 {[%emt 0:08:22]} 14. Bc2 {[%emt 0:07:06]} Rac8 {[%emt 0:07:58]} 15. Rfe1 {[%emt 0:02:04]} Qb8 {[%emt 0:03:04]} 16. Rac1 {[%emt 0:16:03]} Ba8 {[%emt 0:12:29]} 17. Bb1 {[%emt 0:04:46]} b5 {[%emt 0:01:28]} 18. d4 {[%emt 0:01:17]} e5 {[%emt 0:00:24]} 19. dxe5 {[%emt 0:01:00]} dxe5 20. Bg5 {[%emt 0:01:53]} c4 {[%emt 0:01:09]} 21. axb5 {[%emt 0:06:03]} axb5 {[%emt 0:00:01]} 22. Rcd1 {[%emt 0:00:56]} Bc6 {[%emt 0:01:51]} 23. Nh4 {[%emt 0:01:24]} g6 {[%emt 0:04:59]} 24. Qe3 {[%emt 0:03:35]} Qb7 {[%emt 0:01:28]} 25. Kh2 {[%emt 0:01:13]} Re6 {[%emt 0:01:02]} 26. Rd2 {[%emt 0:02:36]} Nc5 {[%emt 0:02:30]} 27. f3 {[%emt 0:02:24]} Nb3 {[%emt 0:04:08]} 28. Rdd1 {[%emt 0:00:56]} Bc5 {[%emt 0:00:13]} 29. Qe2 {[%emt 0:00:17]} Be7 {[%emt 0:03:44]} 30. Nc2 {[%emt 0:03:31]} Ng4+ {[%emt 0:00:30]} 31. fxg4 {[%emt 0:04:42]} Bxg5 {[%emt 0:00:02]} 32. Nf3 {[%emt 0:00:18]} Be7 {[%emt 0:02:26]} 33. Nd2 {[%emt 0:01:57]} Nc5 {[%emt 0:03:13]} 34. Nb4 {[%emt 0:00:39]} Rd8 {[%emt 0:00:21]} 35. Bc2 {[%emt 0:04:57]} Red6 {[%emt 0:00:54]} 36. Rf1 {[%emt 0:01:03]} Bf8 {[%emt 0:08:49]} 37. g5 {[%emt 0:02:35]} Ne6 {[%emt 0:01:40]} 38. h4 {[%emt 0:01:42]} R6d7 {[%emt 0:00:34]} 39. Nxc6 {[%emt 0:01:01]} Qxc6 {[%emt 0:00:01]} 40. g3 {[%emt 0:00:48]} h6 {[%emt 0:01:56]} 41. Nf3 {[%emt 0:01:53]} Rxd1 {[%emt 0:00:00]} 42. Rxd1 {[%emt 0:00:00]} Rxd1 {[%emt 0:00:00]} 43. Qxd1 {[%emt 0:00:00]} hxg5 {[%emt 0:00:00]} 44. hxg5 {[%emt 0:00:00]} Qc5 {[%emt 0:00:00]} 45. Qd2 {[%emt 0:00:00]} Be7 {[%emt 0:00:00]} 46. Kg2 {[%emt 0:00:00]} Bd8 {[%emt 0:00:00]} 47. b4 {[%emt 0:00:00]} Qa7 {[%emt 0:00:00]} 48. Kh3 {[%emt 0:00:00]} Qa1 {[%emt 0:00:00]} 49. Kg2 {[%emt 0:00:00]} Qa7 {[%emt 0:01:48]} 50. Bd1 {[%emt 0:00:00]} Be7 {[%emt 0:00:10]} 51. Be2 {[%emt 0:00:00]} Qb7 {[%emt 0:01:06]} 52. Qe3 {[%emt 0:00:00]} Qb8 {[%emt 0:00:12]} 53. Qd2 {[%emt 0:00:00]} Qa8 {[%emt 0:01:31]} 54. Qe3 {[%emt 0:00:00]} Qd8 {[%emt 0:00:23]} 55. Nxe5 {[%emt 0:00:00]} Bxg5 {[%emt 0:00:14]} 56. Qa7 {[%emt 0:00:00]} Qc7 {[%emt 0:00:59]} 57. Qa8+ {[%emt 0:00:00]} Kg7 {[%emt 0:00:19]} 58. Qd5 {[%emt 0:00:00]} 1/2-1/2

[Event "Ceske Budejovice Open-A 2019"]
[Site "Ceske Budejovice"]
[Date "2019.07.02"]
[Round "4.8"]
[White "Sykora, Ondrej"]
[Black "Marsalek, Zdenek"]
[Result "1-0"]
[ECO "B86"]
[WhiteElo "2065"]
[BlackElo "2259"]
[Annotator "NA"]
[PlyCount "85"]
[EventDate "2019.07.02"]
[EventCountry "CZE"]
[SourceTitle "playchess.com"]
[Source "ChessBase"]
[SourceQuality "1"]
[TimeControl "5400+30"]

1. e4 {[%emt 0:00:40]} d6 {[%emt 0:00:17]} 2. Bc4 {[%emt 0:00:20]} c5 {[%emt 0:00:49]} 3. Nf3 {[%emt 0:00:43]} Nf6 {[%emt 0:00:18]} 4. Nc3 {[%emt 0:00:27]} e6 {[%emt 0:00:31]} 5. d4 {[%emt 0:00:12]} cxd4 {[%emt 0:00:13]} 6. Nxd4 {[%emt 0:00:01]} a6 {[%emt 0:00:15]} 7. a4 {[%emt 0:03:28]} Qc7 {[%emt 0:02:02]} 8. Bb3 {[%emt 0:01:47]} Be7 {[%emt 0:00:08]} 9. Be3 {[%emt 0:00:42]} Nc6 {[%emt 0:00:28]} 10. O-O {[%emt 0:01:31]} O-O {[%emt 0:00:23]} 11. Nxc6 {[%emt 0:03:07]} Qxc6 {[%emt 0:00:33]} 12. f3 {[%emt 0:01:17]} b6 {[%emt 0:02:19]} 13. Qe2 {[%emt 0:03:37]} Bb7 {[%emt 0:01:02]} 14. Bf2 {[%emt 0:06:32]} Rac8 {[%emt 0:03:48]} 15. Rfd1 {[%emt 0:01:27]} Nd7 {[%emt 0:01:14]} 16. Nd5 {[%emt 0:04:05]} Bf6 {[%emt 0:01:29]} 17. Nxf6+ {[%emt 0:10:19]} Nxf6 {[%emt 0:00:03]} 18. Qe3 {[%emt 0:01:57]} b5 {[%emt 0:00:32]} 19. Qd4 {[%emt 0:08:42]} d5 {[%emt 0:02:10]} 20. e5 {[%emt 0:02:40]} Nd7 {[%emt 0:00:13]} 21. axb5 {[%emt 0:00:39]} axb5 {[%emt 0:00:13]} 22. Ra7 {[%emt 0:01:10]} Ra8 {[%emt 0:00:17]} 23. Rda1 {[%emt 0:00:06]} Rxa7 {[%emt 0:00:41]} 24. Rxa7 {[%emt 0:00:57]} Ra8 {[%emt 0:00:28]} 25. f4 {[%emt 0:02:37]} Rxa7 {[%emt 0:01:20]} 26. Qxa7 {[%emt 0:00:02]} Qa6 {[%emt 0:00:11]} 27. Qxa6 {[%emt 0:00:12]} Bxa6 {[%emt 0:00:01]} 28. c3 {[%emt 0:00:37]} Kf8 {[%emt 0:00:08]} 29. Bd4 {[%emt 0:00:36]} Bb7 {[%emt 0:00:08]} 30. Bc2 {[%emt 0:00:25]} h6 {[%emt 0:00:13]} 31. Bd3 {[%emt 0:00:09]} Bc6 {[%emt 0:00:05]} 32. Kf2 {[%emt 0:00:15]} h5 {[%emt 0:01:29]} 33. Kg3 {[%emt 0:04:41]} g6 {[%emt 0:04:44]} 34. Kh4 {[%emt 0:00:27]} Kg7 {[%emt 0:00:07]} 35. h3 {[%emt 0:01:06]} Nf8 {[%emt 0:01:42]} 36. g4 {[%emt 0:00:45]} hxg4 {[%emt 0:00:27]} 37. hxg4 {[%emt 0:00:01]} Nh7 {[%emt 0:03:19]} 38. Kg3 {[%emt 0:03:03]} Kf8 {[%emt 0:01:09]} 39. Bc5+ {[%emt 0:01:08]} Ke8 {[%emt 0:00:26]} 40. Kf2 {[%emt 0:00:19]} Kd7 {[%emt 0:01:18]} 41. Ke3 {[%emt 0:02:29]} Kc7 {[%emt 0:00:18]} 42. Kd2 {[%emt 0:01:31]} Be8 {[%emt 0:03:00]} 43. g5 {[%emt 0:01:13]} 1-0

[Event "Ceske Budejovice Open-A 2019"]
[Site "Ceske Budejovice"]
[Date "2019.07.02"]
[Round "4.10"]
[White "Sergeev, Vladimir"]
[Black "Barak, David"]
[Result "1-0"]
[ECO "A00"]
[WhiteElo "2411"]
[BlackElo "2015"]
[Annotator "ChessBase"]
[PlyCount "107"]
[EventDate "2019.07.02"]
[EventCountry "CZE"]
[SourceTitle "playchess.com"]
[Source "ChessBase"]
[SourceQuality "1"]
[TimeControl "5400+30"]

1. g3 {[%emt 0:04:38]} c5 {[%emt 0:00:00]} 2. Bg2 {[%emt 0:00:11]} Nf6 {[%emt 0:00:00]} 3. c4 {[%emt 0:01:02]} e6 {[%emt 0:00:11]} 4. Nf3 {[%emt 0:00:08]} Qc7 {[%emt 0:00:16]} 5. Nc3 {[%emt 0:00:15]} a6 {[%emt 0:00:21]} 6. O-O {[%emt 0:00:22]} b6 {[%emt 0:03:22]} 7. b3 {[%emt 0:02:34]} Bb7 {[%emt 0:00:24]} 8. Bb2 {[%emt 0:00:03]} Be7 {[%emt 0:00:20]} 9. Rc1 {[%emt 0:00:23]} O-O {[%emt 0:00:36]} 10. e3 {[%emt 0:00:06]} d5 {[%emt 0:09:43]} 11. cxd5 {[%emt 0:00:37]} exd5 {[%emt 0:03:54]} 12. b4 {[%emt 0:01:58]} Nbd7 {[%emt 0:05:08]} 13. bxc5 {[%emt 0:14:30]} bxc5 {[%emt 0:03:20]} 14. Na4 {[%emt 0:01:47]} Rac8 {[%emt 0:26:22]} 15. Bh3 {[%emt 0:04:15]} Rb8 {[%emt 0:08:18]} 16. Bxf6 {[%emt 0:05:07]} Nxf6 {[%emt 0:01:35]} 17. Nxc5 {[%emt 0:00:22]} Bxc5 {[%emt 0:04:09]} 18. d4 {[%emt 0:00:10]} Qa5 {[%emt 0:05:50]} 19. dxc5 {[%emt 0:04:48]} Qxa2 {[%emt 0:03:18]} 20. Nd4 {[%emt 0:06:54]} Bc8 {[%emt 0:06:28]} 21. Bxc8 {[%emt 0:02:34]} Rfxc8 {[%emt 0:02:10]} 22. c6 {[%emt 0:01:22]} Rc7 {[%emt 0:05:14]} 23. Ra1 {[%emt 0:01:51]} Qc4 {[%emt 0:08:11]} 24. Ra4 {[%emt 0:00:49]} Rb4 {[%emt 0:00:48]} 25. Rxb4 {[%emt 0:00:25]} Qxb4 {[%emt 0:00:01]} 26. Qa1 {[%emt 0:00:14]} Qb6 {[%emt 0:02:20]} 27. Rb1 {[%emt 0:00:19]} Qa7 {[%emt 0:00:08]} 28. Qa5 {[%emt 0:01:06]} h6 {[%emt 0:00:28]} 29. Rb6 {[%emt 0:00:33]} Ne8 {[%emt 0:01:00]} 30. Rxa6 {[%emt 0:03:43]} Qb8 {[%emt 0:00:06]} 31. Ra8 {[%emt 0:08:25]} Qb1+ {[%emt 0:00:32]} 32. Kg2 {[%emt 0:00:01]} Re7 {[%emt 0:00:42]} 33. Qxd5 {[%emt 0:02:43]} Kh7 {[%emt 0:00:28]} 34. Qf5+ {[%emt 0:06:03]} Qxf5 {[%emt 0:00:07]} 35. Nxf5 {[%emt 0:00:04]} Re5 {[%emt 0:00:30]} 36. Nd4 {[%emt 0:01:20]} Nc7 {[%emt 0:01:05]} 37. Rd8 {[%emt 0:00:29]} Kg6 {[%emt 0:00:28]} 38. Rd6+ {[%emt 0:01:40]} f6 {[%emt 0:00:33]} 39. Rd7 {[%emt 0:00:28]} Ne8 {[%emt 0:00:32]} 40. c7 {[%emt 0:02:42]} Rc5 {[%emt 0:00:26]} 41. Ne6 {[%emt 0:00:08]} Rc6 {[%emt 0:00:00]} 42. Re7 {[%emt 0:00:00]} Rxe6 {[%emt 0:00:00]} 43. Rxe6 {[%emt 0:00:00]} Nxc7 {[%emt 0:00:00]} 44. Re7 {[%emt 0:00:00]} Nd5 {[%emt 0:00:00]} 45. Rd7 {[%emt 0:00:00]} Nb6 {[%emt 0:00:00]} 46. Rb7 {[%emt 0:00:00]} Nc8 {[%emt 0:00:00]} 47. g4 {[%emt 0:00:00]} Nd6 {[%emt 0:00:00]} 48. Rd7 {[%emt 0:00:00]} Ne4 {[%emt 0:00:00]} 49. h4 {[%emt 0:00:00]} Nc5 {[%emt 0:00:00]} 50. h5+ {[%emt 0:00:00]} Kh7 {[%emt 0:00:00]} 51. Rc7 {[%emt 0:00:00]} Ne6 {[%emt 0:00:00]} 52. Re7 {[%emt 0:00:00]} Nd8 {[%emt 0:00:00]} 53. f4 {[%emt 0:00:00]} Nc6 {[%emt 0:00:00]} 54. Rd7 {[%emt 0:00:00]} 1-0